Workbook

Sheet Plan1
K2: Data: 29/12/2014
A3: Companhia de Desenvolvimento dos Vales do São Francisco e Parnaíba
A4: Estimativa de Custo Mensal de Gestão de Administração no Perímetro Baixio de Irecê
A7: OBRA : | C7: SMO BAIXIO DE IRECÊ
A8: ORÇAMENTO : | C8: SERVIÇOS DE MANUTENÇÃO E OPERAÇÃO BAIXIO IRECÊ-BA
A9: LOCAL : | C9: Xique-Xique - Bahia
A11: PLANILHA ESTIMATIVA DE CUSTO MENSAL DE GESTÃO DE ADMINISTRAÇÃO NO PERÍMETRO BAIXIO DE IRECÊ
A12: Item | B12: Atividade/Função | C12: Salário Unitário (A) | D12: Adicionais | G12: Sub total Adicionais + benefícios (B) | H12: Intrajornada (C ) | I12: Sub total salário / categoria (A)+(B)+(C ) | J12: Valor Remuneração com Encargos Sociais | K12: Qtde. Profissionais | L12: Valor Total por Categoria
C13: R$ / mês | D13: Ad. Noturno (40%) | E13: Ad. Insalubridade (40%) | F13: Ad. Periculosidade (30%) | I13: R$ | J13: ES mensal (51,96%); ES Autônomo (20,00%) | K13: mês
A14: 1 | B14: Engenheiro Residente - P2 | C14: 8331.84 | G14: =SUM(D14:F14) -> 0 | I14: =C14+G14+H14 -> 8331.84 | J14: =ROUND(I14*1.5196,2) -> 12661.06 | K14: 12 | L14: =J14*K14 -> 151932.72
A15: 2 | B15: Auxiliar administrativo - A3 | C15: 1425.6 | G15: =SUM(D15:F15) -> 0 | I15: =C15+G15+H15 -> 1425.6 | J15: =ROUND(I15*1.5196,2) -> 2166.34 | K15: 12 | L15: =J15*K15 -> 25996.08
A16: 3 | B16: Almoxarife - A3 | C16: 1425.6 | G16: =SUM(D16:F16) -> 0 | I16: =C16+G16+H16 -> 1425.6 | J16: =ROUND(I16*1.5196,2) -> 2166.34 | K16: 12 | L16: 25996.08
A17: 4 | B17: Técnico de Medição - T0 | C17: 4479.2 | G17: =SUM(D17:F17) -> 0 | I17: =C17+G17+H17 -> 4479.2 | J17: 6806.59 | K17: 12 | L17: 81679.08
A18: 5 | B18: Motorista - A3 | C18: 1425.6 | G18: =SUM(D18:F18) -> 0 | I18: =C18+G18+H18 -> 1425.6 | J18: 2166.34 | K18: 36 | L18: 77988.24
A19: 6 | B19: Auxiliar de serviços gerais - A4 | C19: 894.08 | G19: =SUM(D19:F19) -> 0 | I19: =C19+G19+H19 -> 894.08 | J19: 1358.64 | K19: 96 | L19: 130429.44
A20: 7 | B20: Técnico Agrícola - T1 | C20: 2976.16 | G20: =SUM(D20:F20) -> 0 | I20: =C20+G20+H20 -> 2976.16 | J20: 4522.57 | K20: 12 | L20: 54270.84
A21: 8 | B21: Técnico Auxiliar Agrícola - T3 | C21: 1082.4 | G21: =SUM(D21:F21) -> 0 | I21: =C21+G21+H21 -> 1082.4 | J21: 1644.82 | K21: 36 | L21: 59213.52
A22: 9 | B22: Operador de estação de bomba - Diurno - T3 | C22: 1082.4 | F22: =C22*0.3 -> 324.72 | G22: =SUM(D22:F22) -> 324.72 | H22: =(C22/180)*1.5*15 -> 135.3 | I22: =C22+G22+H22 -> 1542.42 | J22: 2343.86 | K22: 216 | L22: 506273.76
A23: 10 | B23: Operador de estação de bomba - Noturno - T3 | C23: 1082.4 | D23: =(C23/180)*0.4*8*15 -> 288.64 | F23: =C23*0.3 -> 324.72 | G23: =SUM(D23:F23) -> 613.36 | H23: =(C23/180)*1.5*15 -> 135.3 | I23: =C23+G23+H23 -> 1831.06 | J23: 2782.48 | K23: 204 | L23: 567625.92
A24: 11 | B24: Técnico Mecânico - T0 | C24: 4479.2 | E24: =C24*0.4 -> 1791.68 | G24: =SUM(D24:F24) -> 1791.68 | I24: =C24+G24+H24 -> 6270.88 | J24: 9529.23 | K24: 12 | L24: 114350.76
A25: 12 | B25: Técnico Eletrotécnico - T0 | C25: 4479.2 | F25: =C25*0.3 -> 1343.76 | G25: =SUM(D25:F25) -> 1343.76 | I25: =C25+G25+H25 -> 5822.96 | J25: 8848.57 | K25: 12 | L25: 106182.84
A26: 13 | B26: Mecânico -T2 | C26: 2469.28 | E26: =C26*0.4 -> 987.712 | G26: =SUM(D26:F26) -> 987.712 | I26: =C26+G26+H26 -> 3456.992 | J26: 5253.25 | K26: 12 | L26: 63039
A27: 14 | B27: Auxiliar de Mecânico - T3 | C27: 1082.4 | E27: =C27*0.4 -> 432.96 | G27: =SUM(D27:F27) -> 432.96 | I27: =C27+G27+H27 -> 1515.36 | J27: 2302.74 | K27: 12 | L27: 27632.88
A28: 15 | B28: Encanador - T3 | C28: 1082.4 | G28: =SUM(D28:F28) -> 0 | I28: =C28+G28+H28 -> 1082.4 | J28: 1644.82 | K28: 12 | L28: 19737.84
A29: 16 | B29: Eletricista - T2 | C29: 2469.28 | F29: =C29*0.3 -> 740.784 | G29: =SUM(D29:F29) -> 740.784 | I29: =C29+G29+H29 -> 3210.064 | J29: 4878.01 | K29: 12 | L29: 58536.12
A30: 17 | B30: Auxiliar de Eletricista - T3 | C30: 1082.4 | F30: =C30*0.3 -> 324.72 | G30: =SUM(D30:F30) -> 324.72 | I30: =C30+G30+H30 -> 1407.12 | J30: 2138.26 | K30: 12 | L30: 25659.12
A31: 18 | B31: Pedreiro/Carpinteiro - T3 | C31: 1082.4 | G31: =SUM(D31:F31) -> 0 | I31: =C31+G31+H31 -> 1082.4 | J31: 1644.82 | K31: 12 | L31: 19737.84
A32: 19 | B32: Desenhista Cadista - T1 | C32: 2976.16 | G32: =SUM(D32:F32) -> 0 | I32: =C32+G32+H32 -> 2976.16 | J32: 4522.57 | K32: 12 | L32: 54270.84
A33: 20 | B33: Engenheiro Consultor | C33: 19416.32 | G33: =SUM(D33:F33) -> 0 | I33: =C33+G33+H33 -> 19416.32 | J33: =ROUND(I33*1.2,2) -> 23299.58 | K33: 3 | L33: 69898.74
A34: TOTAL GERAL: | L34: =SUM(L14:L33) -> 2240451.66

Sheet Plan2

Sheet Plan3
